bitfinex-derivatives/quotes_SOLF0:USTF0_20250903
["timestamp","ask_amount","ask_price","bid_price","bid_amount"]
[1756911411592,7.41,212.25,212.15,7.7]
[1756911411983,7.41,212.32,212.2,3.39237088]
[1756911412187,7.41,212.32,212.21,7.7]
[1756911412789,7.41,212.3,212.17,7.7]
[1756911412989,3.39237088,212.28,212.17,7.7]
[1756911413188,7.41,212.27,212.17,7.7]
[1756911415592,7.41,212.24,212.14,7.7]
[1756911418600,3.39237088,212.22,212.14,7.7]
[1756911418809,7.41,212.21,212.14,7.7]
[1756911418995,3.39237088,212.22,212.12,97.38378706]
[1756911419297,3.39237088,212.22,212.02,3.9573667]
[1756911419298,7.41,212.18,212.01,7.7]
[1756911419499,10.80237088,212.18,212.06,7.7]
[1756911420496,7.41,212.14,212.02,128.22]
[1756911422500,7.41,212.14,212.02,7.7]
[1756911425503,3.39237088,212.12,212.02,7.7]
[1756911425702,7.41,212.11,212.02,7.7]
[1756911428201,7.41,212.15,212.02,7.7]
[1756911428504,7.41,212.15,212.05,7.7]
[1756911429502,10.80237088,212.18,212.05,7.7]
[1756911429805,10.80237088,212.18,211.99,120.5]
[1756911429806,7.41,212.18,212.08,7.7]
[1756911430407,10.80237088,212.22,212.08,7.7]
[1756911431710,10.80237088,212.22,212.11,7.27]
[1756911431903,7.41,212.22,212.11,7.27]
[1756911432403,7.41,212.22,212.13,3.39237088]
[1756911432607,7.41,212.22,212.14,7.27]
[1756911434006,3.39237088,212.24,212.1,10.66237088]
[1756911434209,7.26,212.21,212.1,10.66237088]
[1756911434405,7.26,212.21,212.1,7.27]
[1756911434811,3.39237088,212.19,212.1,7.27]
[1756911435012,7.26,212.18,212.06,7.27]
[1756911437211,7.26,212.18,212.07,3.39237088]
[1756911437410,7.26,212.18,212.08,7.27]
[1756911437603,7.26,212.24,212.08,7.27]
[1756911439104,7.26,212.24,212.12,7.27]
[1756911439419,7.26,212.29,212.13,7.27]
[1756911439615,7.26,212.29,212.14,46.7614]
[1756911439917,7.26,212.29,212.15,7.27]
[1756911443105,7.26,212.29,212.11,4.242]
[1756911443106,7.26,212.29,212.09,4.2425]
[1756911443306,7.26,212.29,212.1,7.27]
[1756911443507,7.26,212.27,212.1,7.27]
[1756911444212,12.52738605,212.27,212.1,7.27]
[1756911447214,7.26,212.27,212.1,7.27]
[1756911447418,12.52738605,212.27,212.1,7.27]
[1756911450722,7.26,212.27,212.1,7.27]
[1756911451221,7.26,212.27,212.09,7.27]
[1756911451720,7.26,212.27,212.08,120.3]
[1756911451721,7.26,212.27,212.12,7.27]
[1756911453429,7.26,212.27,212.09,7.27]
[1756911454032,7.26,212.27,212.12,7.27]
[1756911454432,7.26,212.27,212.12,4.2418]
[1756911454732,7.26,212.27,212.13,7.27]
[1756911456530,7.26,212.27,212.14,7.27]
[1756911457831,7.26,212.27,212.18,7.27]
[1756911459440,7.26,212.27,212.18,10.66093743]
[1756911459636,7.26,212.31,212.19,7.27]
[1756911460238,7.26,212.31,212.03,480.72441115]
[1756911460239,7.26,212.28,212.15,7.27]
[1756911460440,7.26,212.25,212.15,7.27]
[1756911461039,7.26,212.28,212.15,7.27]
[1756911461740,7.26,212.28,212.18,7.89]
[1756911462135,7.26,212.28,212.18,11.28093743]
[1756911463041,7.26,212.28,212.18,7.89]
[1756911463743,7.26,212.28,212.1,65.9919]
[1756911463744,7.48,212.25,212.11,3.39093743]
[1756911463951,7.48,212.25,212.13,7.89]
[1756911464242,7.48,212.25,212.12,82.4]
[1756911464243,7.48,212.25,212.15,7.89]
[1756911465437,8.40303185,212.28,212.15,7.89]
[1756911465637,7.48,212.27,212.15,7.89]
[1756911466242,13.6704179,212.28,212.11,85.07]
[1756911466446,7.48,212.27,212.11,85.07]
[1756911466747,13.6704179,212.28,212.11,7.89]
[1756911466946,12.74738605,212.27,212.11,7.89]
[1756911467946,5.26738605,212.26,212.11,7.89]
[1756911468149,7.48,212.25,212.11,7.89]
[1756911470150,7.48,212.25,212.12,4.2418]
[1756911470551,7.48,212.25,212.11,7.89]
[1756911471250,12.74738605,212.25,212.11,7.89]
[1756911471453,5.2798051,212.24,212.11,7.89]
[1756911471749,7.48,212.23,212.11,7.89]
[1756911481752,5.26738605,212.22,212.11,7.89]
[1756911482056,7.48,212.21,212.11,7.89]
[1756911482453,7.48,212.21,211.94,84.96478109]
[1756911482454,5.26738605,212.2,212.06,7.89]
[1756911482751,12.74738605,212.19,212.06,7.89]
[1756911482952,5.2798051,212.18,212.06,7.89]
[1756911483348,7.48,212.19,212.06,7.89]
[1756911483751,5.26738605,212.22,212.06,5.2798051]
[1756911483952,5.2798051,212.23,212.07,7.89]
[1756911485057,5.2798051,212.23,212.06,9.20100003]
[1756911485058,10.54719115,212.23,212.11,7.89]
[1756911485255,7.48,212.22,212.11,7.89]
[1756911485558,2.17193133,212.19,212.11,10.06193133]
[1756911486856,2.17193133,212.19,212.13,2.17193133]
[1756911489463,2.17193133,212.21,212.15,2.17193133]
[1756911489958,7.48,212.22,212.15,2.17193133]
[1756911490570,7.48,212.22,212.16,7.89]
[1756911490862,5.26738605,212.23,212.17,2.17193133]
[1756911491063,5.26738605,212.25,212.19,2.17193133]
[1756911491253,9.65193133,212.26,212.19,2.17193133]
[1756911491659,9.65193133,212.26,212.18,7.89]
[1756911492361,7.90107908,212.32,212.15,4.2413]
[1756911492362,7.24,212.23,212.16,2.17193133]
[1756911493764,7.24,212.27,212.18,9.60193133]
[1756911494157,9.41193133,212.27,212.18,9.60193133]
[1756911495462,7.24,212.27,212.18,9.60193133]
[1756911495663,9.41193133,212.27,212.18,9.60193133]
[1756911496061,9.41193133,212.27,212.2,2.17193133]
[1756911496766,7.24,212.27,212.2,9.60193133]
[1756911497261,2.17193133,212.26,212.18,2.17193133]
[1756911497466,2.17193133,212.26,212.17,2.17193133]
[1756911497761,7.24,212.27,212.19,2.17193133]
[1756911498063,9.41193133,212.27,212.19,2.17193133]
[1756911498461,7.24,212.27,212.19,2.17193133]
[1756911498660,9.41193133,212.27,212.19,2.17193133]
[1756911499560,7.24,212.24,212.18,7.43]
[1756911499958,7.24,212.24,212.18,9.60193133]
[1756911500265,2.17193133,212.27,212.2,9.60193133]
[1756911500566,316.78,212.36,212.23,7.43]
[1756911500567,2.17193133,212.29,212.23,7.43]
[1756911500767,2.17193133,212.31,212.23,7.43]
[1756911501971,7.24,212.32,212.24,2.17193133]
[1756911501972,9.41193133,212.32,212.24,2.17193133]
[1756911503164,9.41193133,212.32,212.23,7.43]
[1756911503364,9.41193133,212.32,212.23,9.60193133]
[1756911503365,2.17193133,212.31,212.23,9.60193133]
[1756911505461,2.17193133,212.28,212.22,2.17193133]
[1756911505657,9.41193133,212.28,212.2,2.17193133]
[1756911506265,7.24,212.24,212.15,7.43]
[1756911506465,2.17193133,212.23,212.15,9.60193133]
[1756911507068,7.24,212.24,212.15,9.60193133]
[1756911507268,2.17193133,212.22,212.15,9.60193133]
[1756911507869,9.41193133,212.22,212.15,7.43]
[1756911508365,2.17193133,212.2,212.13,2.17193133]
[1756911508662,2.17193133,212.22,212.14,7.43]
[1756911508865,7.24,212.21,212.14,7.43]
[1756911509066,9.41193133,212.21,212.14,7.43]
[1756911509569,9.41193133,212.21,212.14,9.60193133]
[1756911510972,7.24,212.21,212.14,9.60193133]
[1756911511171,2.17193133,212.23,212.16,2.17193133]
[1756911511971,9.41193133,212.25,212.17,7.43]
[1756911512170,9.41193133,212.25,212.18,2.17193133]
[1756911512474,9.41193133,212.25,212.17,9.60193133]
[1756911512969,9.41193133,212.25,212.17,7.43]
[1756911513170,9.41193133,212.25,212.17,9.60193133]
[1756911515674,5.26738605,212.3,212.2,7.43]
[1756911515864,2.17193133,212.28,212.2,7.43]
[1756911516372,7.24,212.29,212.21,2.17193133]
[1756911517073,7.24,212.27,212.2,7.43]
[1756911517277,7.24,212.27,212.21,2.17193133]
[1756911521380,7.24,212.27,212.2,7.43]
[1756911521579,7.24,212.27,212.21,2.17193133]
[1756911521881,7.24,212.27,212.23,2.17193133]
[1756911522071,7.69,212.29,212.23,2.17193133]
[1756911523279,7.69,212.29,212.25,2.17193133]
[1756911523478,7.69,212.31,212.25,2.17193133]
[1756911523887,7.69,212.31,212.24,2.17193133]
[1756911531892,7.69,212.31,212.22,11.3898]
[1756911531893,7.43931738,212.34,212.26,2.17193133]
[1756911532093,7.69,212.33,212.26,2.17193133]
[1756911533197,12.95738605,212.33,212.26,2.17193133]
[1756911533498,12.95738605,212.33,212.24,7.15]
[1756911533798,7.69,212.33,212.24,11.3895]
[1756911534497,7.69,212.33,212.25,7.15]
[1756911535296,7.69,212.33,212.27,7.15]
[1756911535888,7.69,212.37,212.27,7.15]
[1756911536194,7.69,212.37,212.29,3.38972081]
[1756911540800,7.69,212.37,212.27,7.15]
[1756911541003,7.69,212.37,212.25,3.38972081]
[1756911541201,3.38972081,212.32,212.18,320.56119493]
[1756911541399,7.69,212.31,212.2,7.15]
[1756911541598,3.38972081,212.29,212.18,316.64]
[1756911542104,7.69,212.28,212.16,7.15]
[1756911543904,3.38972081,212.26,212.16,7.15]
[1756911544213,7.69,212.25,212.16,7.15]
[1756911545913,7.69,212.25,212.14,3.38972081]
[1756911547204,7.69,212.25,212.15,7.15]
[1756911548098,7.69,212.25,212.16,7.15]
[1756911549202,7.69,212.25,212.12,126.41]
[1756911549407,7.69,212.27,212.13,3.38972081]
[1756911550904,7.69,212.27,212.12,126.41]
[1756911551107,3.38972081,212.22,212.07,7.15]
[1756911551310,7.69,212.21,212.07,7.15]
[1756911551607,7.54,212.21,212.07,11.3929]
[1756911551802,7.54,212.21,212.07,7.15]
[1756911552007,3.38972081,212.19,212.07,7.15]
[1756911552207,7.54,212.18,212.07,7.15]
[1756911553506,10.92972081,212.18,212.07,7.15]
[1756911562912,7.54,212.18,212.08,7.72]
[1756911567320,10.92972081,212.18,212.08,7.72]
[1756911567919,3.38972081,212.18,212.06,119.24]
[1756911568119,7.54,212.17,212.06,119.24]
[1756911568316,7.54,212.17,212.07,7.72]
[1756911570616,7.54,212.12,211.98,7.72]
[1756911570816,7.54,212.12,211.99,7.72]
[1756911571828,3.38972081,212.13,211.99,11.10972081]
[1756911572126,7.54,212.12,212.0,7.72]
[1756911572328,7.54,212.12,212.03,7.72]
[1756911572828,10.92972081,212.16,212.04,7.72]
[1756911573528,10.92972081,212.16,212.04,11.10972081]
[1756911574119,7.54,212.16,212.05,7.72]
[1756911576119,7.54,212.16,212.08,7.72]
[1756911576519,7.54,212.21,212.1,3.38972081]
[1756911576825,7.54,212.21,212.11,7.72]
[1756911581927,7.84,212.18,212.07,7.82]
[1756911583838,7.84,212.22,212.13,7.82]
[1756911584136,7.84,212.22,212.04,119.14]
[1756911584137,7.84,212.22,212.15,7.82]
[1756911584434,3.38972081,212.27,212.15,7.82]
[1756911584634,7.84,212.26,212.15,7.82]
[1756911588931,3.38972081,212.24,212.15,7.82]
[1756911589134,7.84,212.23,212.15,7.82]
[1756911593039,11.22972081,212.23,212.06,7.82]
[1756911593238,328.03079989,212.28,212.08,7.82]
[1756911593239,7.84,212.19,212.08,7.82]
[1756911593439,7.84,212.19,212.1,2.17269611]
[1756911593440,2.17269611,212.17,212.1,2.17269611]
[1756911593938,2.17269611,212.17,212.08,9.99269611]
[1756911594537,2.17269611,212.15,212.08,9.99269611]
[1756911596537,13.10738605,212.21,212.11,7.82]
[1756911596736,2.17269611,212.18,212.11,7.82]
[1756911598944,7.84,212.19,212.13,7.82]
[1756911600141,13.10738605,212.24,212.16,2.17269611]
[1756911600343,2.17269611,212.18,212.06,7.82]
[1756911600541,10.01269611,212.19,212.12,7.82]
[1756911600742,7.84,212.19,212.13,2.17269611]
[1756911601836,7.90107908,212.26,212.13,2.17269611]
[1756911601837,7.44008216,212.26,212.17,9.99269611]
[1756911602038,5.26738605,212.27,212.08,7.82]
[1756911602246,2.17269611,212.18,212.08,7.82]
[1756911602442,7.84,212.19,212.12,2.17269611]
[1756911603547,7.84,212.23,212.16,2.17269611]
[1756911604347,7.84,212.23,212.15,7.82]
[1756911604348,10.01269611,212.23,212.15,7.82]
[1756911604651,7.84,212.23,212.16,2.17269611]
[1756911605651,7.84,212.23,212.18,2.17269611]
[1756911605855,7.84,212.23,212.19,7.82]
[1756911606254,10.01269611,212.27,212.18,9.99269611]
[1756911606459,2.17269611,212.25,212.18,2.17269611]
[1756911606660,7.84,212.24,212.18,2.17269611]
[1756911606851,7.84,212.24,212.17,2.17269611]
[1756911607459,7.84,212.24,212.2,7.82]
[1756911608056,7.84,212.29,212.21,2.17269611]
[1756911608258,7.84,212.29,212.22,2.17269611]
[1756911608852,2.17269611,212.26,212.2,7.82]
[1756911609153,2.17269611,212.26,212.18,2.17269611]
[1756911609457,324.72107908,212.34,212.16,2.17269611]
[1756911609458,7.84,212.23,212.16,2.17269611]
[1756911609662,7.84,212.23,212.14,2.17269611]
[1756911609663,2.17269611,212.22,212.14,2.17269611]
[1756911610562,7.84,212.21,212.14,2.17269611]
[1756911611064,7.84,212.28,212.2,2.17269611]
[1756911611254,7.84,212.23,212.13,7.82]
[1756911611458,7.84,212.23,212.16,2.17269611]
[1756911611658,2.17269611,212.26,212.18,2.17269611]
[1756911611860,7.47,212.27,212.2,2.17269611]
[1756911612460,7.47,212.27,212.19,7.17]
[1756911612664,7.47,212.27,212.22,2.17269611]
[1756911612865,7.47,212.27,212.22,9.34269611]
[1756911613857,9.64269611,212.33,212.23,7.17]
[1756911614056,9.64269611,212.33,212.26,2.17269611]
[1756911614667,2.17269611,212.31,212.23,9.34269611]
[1756911614960,2.17269611,212.27,212.2,2.17269611]
[1756911615155,2.17269611,212.27,212.18,7.17]
[1756911615156,2.17269611,212.27,212.19,2.17269611]
[1756911616261,7.47,212.28,212.19,2.17269611]
[1756911616466,2.17269611,212.26,212.19,2.17269611]
[1756911616668,2.17269611,212.26,212.18,7.17]
[1756911616669,2.17269611,212.24,212.16,2.17269611]
[1756911617165,7.47,212.25,212.2,2.17269611]
[1756911617366,2.17269611,212.28,212.2,2.17269611]
[1756911617367,7.47,212.27,212.2,2.17269611]
[1756911617568,7.47,212.27,212.17,7.17]
[1756911618771,7.47,212.32,212.17,7.17]
[1756911620067,12.73738605,212.32,212.17,7.17]
[1756911620266,7.47,212.28,212.17,7.17]
[1756911621366,7.47,212.28,212.13,7.17]
[1756911622070,7.47,212.24,212.09,7.17]
[1756911623072,7.47,212.24,212.1,7.17]
[1756911623266,7.47,212.24,212.14,7.17]
[1756911627075,7.47,212.24,212.1,7.17]
[1756911627575,12.73738605,212.24,212.1,7.17]
[1756911629773,7.47,212.24,212.1,7.17]
[1756911630769,12.73738605,212.24,212.1,7.17]
[1756911631277,7.47,212.2,212.05,7.17]
[1756911635181,7.47,212.2,212.05,5.14004479]
[1756911638281,7.47,212.2,212.06,7.03]
[1756911641382,7.47,212.16,212.06,7.03]
[1756911641679,2.17369431,212.12,212.06,7.03]
[1756911642078,7.16,212.13,212.02,83.06]
[1756911642079,2.17369431,212.1,212.02,9.20369431]
[1756911642275,9.33369431,212.1,212.02,9.20369431]
[1756911642475,2.17369431,212.08,212.02,7.03]
[1756911643481,7.16,212.1,212.02,7.03]
[1756911644683,7.16,212.16,212.02,7.03]
[1756911645387,25.26107908,212.23,212.02,7.03]
[1756911645388,5.28544816,212.15,212.02,7.03]
[1756911645588,7.16,212.14,212.02,7.03]
[1756911648289,5.28544816,212.11,211.99,437.7]
[1756911648593,7.16,212.1,211.99,437.7]
[1756911648784,5.28544816,212.11,211.99,437.7]
[1756911648984,7.16,212.1,211.99,437.7]
[1756911649190,5.28544816,212.11,211.99,437.7]
[1756911649394,5.28544816,212.11,211.99,120.82]
[1756911649895,7.16,212.06,211.91,7.03]
[1756911650082,5.28544816,212.07,211.92,57.42]
[1756911650687,7.16,212.06,211.93,7.03]
[1756911650887,7.16,212.02,211.93,7.03]
[1756911651088,5.28544816,212.03,211.88,7.03]
[1756911651288,7.16,212.02,211.88,127.69]
[1756911652096,7.16,212.02,211.89,7.03]
[1756911655493,7.16,212.02,211.9,7.03]
[1756911656196,7.16,212.02,211.91,120.52]
[1756911657391,8.42009033,212.07,211.91,120.52]
[1756911657597,7.16,212.06,211.91,120.52]
[1756911658599,8.42009033,212.07,211.91,120.52]
[1756911658994,7.16,212.06,211.92,7.03]
[1756911661592,22.26009033,212.13,211.92,7.03]
[1756911661593,7.16,212.12,211.92,7.03]
[1756911661788,7.16,212.12,212.0,7.03]
[1756911661990,7.16,212.12,212.02,7.03]
[1756911662397,7.16,212.15,212.01,50.82]
[1756911662792,7.16,212.1,211.98,7.03]
[1756911664094,7.16,212.1,211.87,316.9]
[1756911664296,7.16,212.1,211.89,7.03]
[1756911664499,8.42009033,212.06,211.89,7.03]
[1756911664694,7.16,212.05,211.9,120.52]
[1756911664900,8.42009033,212.06,211.89,7.03]
[1756911665196,7.16,212.05,211.89,7.03]
[1756911665394,8.42009033,212.01,211.89,7.03]
[1756911665595,7.16,212.0,211.89,7.03]
[1756911666100,7.16,212.0,211.81,7.03]
[1756911666302,44.24,212.0,211.81,7.03]
[1756911666603,8.42009033,211.96,211.81,7.03]
[1756911666901,7.16,211.95,211.81,7.03]
[1756911668002,7.16,211.95,211.81,38.21]
[1756911668201,7.16,211.95,211.82,7.03]
[1756911674407,7.73,212.0,211.85,7.06]
[1756911675301,7.73,212.0,211.85,4.2472]
[1756911675505,7.73,212.0,211.86,7.06]
[1756911675703,7.73,212.0,211.87,73.92]
[1756911676304,7.73,212.0,211.88,7.06]
[1756911676504,7.73,212.06,211.88,7.06]
[1756911677402,7.73,212.06,211.87,73.92]
[1756911677403,7.73,212.06,211.92,7.06]
[1756911677803,336.30738605,212.17,211.92,7.06]
[1756911677804,7.73,212.11,211.92,7.06]
[1756911678004,7.73,212.11,211.94,4.2454]
[1756911678196,7.73,212.11,211.96,7.06]
[1756911679202,7.73,212.11,211.97,7.06]
[1756911680001,7.73,212.11,211.92,120.54]
[1756911680310,7.73,212.11,211.91,7.06]
[1756911680506,7.73,212.06,211.91,7.06]
[1756911683607,8.42009033,212.12,211.94,7.06]
[1756911683907,7.73,212.11,211.94,7.06]
[1756911684102,7.73,212.11,211.95,4.2453]
[1756911684301,7.73,212.11,211.96,7.06]
[1756911686702,7.73,212.11,211.91,7.06]
[1756911687102,8.42009033,212.07,211.91,7.06]
[1756911687313,7.73,212.06,211.91,7.06]
[1756911688710,7.73,212.04,211.91,7.06]
[1756911689007,8.42009033,212.02,211.81,4.2481]
[1756911689211,7.73,212.01,211.82,7.06]
[1756911692708,8.42009033,212.02,211.82,7.06]
[1756911692709,7.73,211.99,211.82,7.06]
[1756911693606,8.42009033,211.97,211.82,7.06]
[1756911693806,7.73,211.96,211.82,7.06]
[1756911694717,7.73,211.91,211.78,7.06]
[1756911697510,16.15009033,211.91,211.78,7.06]
[1756911697708,122.99009033,211.91,211.78,7.06]
[1756911697910,16.15009033,211.91,211.78,7.06]
[1756911698111,7.73,211.91,211.78,7.06]
[1756911700015,7.73,211.91,211.7,7.06]
[1756911700211,7.73,211.87,211.71,7.06]
[1756911703425,7.43,211.95,211.73,7.06]
[1756911703724,16.32009033,211.97,211.73,7.06]
[1756911703725,7.43,211.91,211.73,7.06]
[1756911705716,7.43,211.86,211.73,7.06]
[1756911706124,37.19,211.86,211.73,7.06]
[1756911706424,7.43,211.86,211.73,7.06]
[1756911709426,103.17,211.86,211.73,7.06]
[1756911709621,7.43,211.86,211.73,7.06]
[1756911711822,7.43,211.9,211.73,7.06]
[1756911712222,7.43,211.9,211.74,7.06]
[1756911712821,15.85009033,211.9,211.74,7.06]
[1756911713030,29.99009033,211.9,211.74,7.06]
[1756911713631,7.43,211.88,211.74,7.06]
[1756911715529,5.29814781,211.87,211.74,7.06]
[1756911715726,7.43,211.88,211.74,7.06]
[1756911717030,7.43,211.88,211.75,7.06]
[1756911720529,7.43,211.88,211.76,5.29814781]
[1756911720831,7.43,211.88,211.77,7.06]
[1756911721823,7.43,211.85,211.7,59.1]
[1756911722029,7.43,211.81,211.71,7.06]
[1756911724230,5.29814781,211.86,211.71,7.06]
[1756911724231,12.72814781,211.86,211.71,7.06]
[1756911724431,12.72814781,211.9,211.73,7.06]
[1756911724624,12.72814781,211.9,211.72,90.84]
[1756911724625,7.43,211.9,211.76,7.06]
[1756911725029,12.72814781,211.9,211.76,7.06]
[1756911725236,13.26,211.93,211.68,7.06]
[1756911725237,7.43,211.85,211.68,7.06]
[1756911725429,5.29814781,211.86,211.68,84.22]
[1756911725734,7.43,211.85,211.69,7.06]
[1756911727532,7.43,211.85,211.71,5.29814781]
[1756911727836,7.43,211.85,211.72,7.06]
[1756911729037,12.72814781,211.85,211.72,7.06]
[1756911729429,2.18057075,211.78,211.72,7.06]
[1756911729634,2.18057075,211.78,211.7,2.18057075]
[1756911729938,2.18057075,211.76,211.7,2.18057075]
[1756911730731,2.18057075,211.77,211.7,2.18057075]
[1756911730926,9.61057075,211.79,211.7,2.18057075]
[1756911731130,7.43,211.79,211.71,7.07]
[1756911731337,9.61057075,211.79,211.71,7.07]
[1756911731839,2.18057075,211.81,211.72,2.18057075]
[1756911732631,2.18057075,211.81,211.74,2.18057075]
[1756911732934,9.47057075,211.83,211.75,2.18057075]
[1756911733135,2.18057075,211.85,211.77,2.18057075]
[1756911733538,2.18057075,211.83,211.75,7.07]
[1756911733738,2.18057075,211.83,211.75,9.25057075]
[1756911733933,2.18057075,211.83,211.77,2.18057075]
[1756911734130,2.18057075,211.84,211.77,2.18057075]
[1756911734335,2.18057075,211.84,211.75,7.07]
[1756911734536,9.47057075,211.84,211.77,2.18057075]
[1756911736239,2.18057075,211.88,211.79,2.18057075]
[1756911736438,2.18057075,211.88,211.81,2.18057075]
[1756911737143,7.29,211.89,211.83,2.18057075]
[1756911738436,2.18057075,211.88,211.76,25.12]
[1756911738644,2.18057075,211.88,211.79,2.18057075]
[1756911739640,2.18057075,211.86,211.77,7.07]
[1756911739841,2.18057075,211.84,211.77,9.25057075]
[1756911740643,2.18057075,211.84,211.75,2.18057075]
[1756911740840,2.18057075,211.82,211.75,2.18057075]
[1756911741239,5.26738605,211.86,211.79,9.25057075]
[1756911741434,2.18057075,211.88,211.79,9.25057075]
[1756911741835,9.47057075,211.86,211.79,2.18057075]
[1756911742040,9.47057075,211.86,211.77,2.18057075]
[1756911742345,9.47057075,211.86,211.75,7.07]
[1756911742538,9.47057075,211.86,211.78,2.18057075]
[1756911743140,2.18057075,211.88,211.8,2.18057075]
[1756911743439,2.18057075,211.86,211.79,2.18057075]
[1756911743838,7.29,211.87,211.79,2.18057075]
[1756911744042,5.26738605,211.89,211.83,2.18057075]
[1756911744239,5.26738605,211.91,211.83,2.18057075]
[1756911744540,14.7379568,211.92,211.85,2.18057075]
[1756911744949,2.18057075,211.9,211.83,2.18057075]
[1756911745338,2.18057075,211.9,211.81,7.07]
[1756911745744,2.18057075,211.9,211.83,2.18057075]
[1756911745945,14.7379568,211.92,211.83,2.18057075]
[1756911746144,14.7379568,211.92,211.85,2.18057075]
[1756911746145,7.29,211.92,211.85,2.18057075]
[1756911746747,7.4479568,211.95,211.87,2.18057075]
[1756911747149,7.4479568,211.95,211.84,7.07]
[1756911747350,7.4479568,211.95,211.87,2.18057075]
[1756911748144,2.18057075,211.95,211.87,2.18057075]
[1756911748342,7.4479568,211.95,211.87,2.18057075]
[1756911748740,2.18057075,211.95,211.89,2.18057075]
[1756911750745,2.18057075,211.95,211.87,9.25057075]
[1756911750948,2.18057075,211.93,211.85,2.18057075]
[1756911751154,7.29,211.94,211.85,2.18057075]
[1756911751155,2.18057075,211.91,211.85,2.18057075]
[1756911751348,12.55738605,211.94,211.82,7.07]
[1756911751550,2.18057075,211.92,211.85,2.18057075]
[1756911751957,7.29,211.94,211.87,2.18057075]
[1756911752155,7.29,211.94,211.79,73.8]
[1756911752156,2.18057075,211.93,211.85,2.18057075]
[1756911753551,7.29,211.94,211.87,2.18057075]
[1756911754153,2.18057075,211.93,211.86,7.07]
[1756911755153,2.18057075,211.91,211.85,2.18057075]
[1756911755352,2.18057075,211.89,211.83,2.18057075]
[1756911755554,2.18057075,211.89,211.81,9.25057075]
[1756911755757,2.18057075,211.87,211.81,2.18057075]
[1756911756258,2.18057075,211.87,211.77,24.65]
[1756911756454,2.18057075,211.87,211.8,2.18057075]
[1756911756652,7.29,211.9,211.81,7.07]
[1756911756852,2.18057075,211.89,211.81,7.07]
[1756911757156,2.18057075,211.89,211.82,2.18057075]
[1756911757357,13.16846514,212.09,211.86,2.18057075]
[1756911757358,2.18057075,211.93,211.86,2.18057075]
[1756911757757,2.18057075,211.94,211.86,2.18057075]
[1756911757950,2.18057075,211.94,211.85,7.07]
[1756911758153,2.18057075,211.94,211.86,2.18057075]
[1756911759462,2.18057075,211.88,211.81,2.18057075]
[1756911759853,7.29,211.91,211.83,2.18057075]
[1756911760255,7.29,211.91,211.81,7.07]
[1756911760455,7.29,211.91,211.84,2.18057075]
[1756911760858,7.29,211.95,211.86,2.18057075]
[1756911761057,9.47057075,211.95,211.86,2.18057075]
[1756911761459,7.29,211.95,211.85,7.07]
[1756911762061,5.29234057,211.95,211.81,7.08]
[1756911762362,7.93,211.94,211.81,7.08]
[1756911765758,7.93,211.94,211.82,7.08]
[1756911765963,7.93,211.98,211.82,7.08]
[1756911766163,5.29234057,211.99,211.82,7.08]
[1756911766355,7.93,211.98,211.82,7.08]
[1756911768255,7.93,211.98,211.83,4.2476]
[1756911768461,7.93,211.98,211.86,7.08]